[Event "22nd Hogeschool Zeeland 2018"]
[Site "Vlissingen"]
[Date "2018.08.04"]
[Round "1"]
[White "Schoppen, Casper"]
[Black "Klein, Jorik"]
[Result "1-0"]
[ECO "B86"]
[WhiteElo "2395"]
[BlackElo "1828"]
[Annotator "NA"]
[PlyCount "43"]
[EventDate "2018.08.04"]
[EventType "swiss"]
[EventCountry "NED"]
[SourceTitle "playchess.com"]
[Source "ChessBase"]
[SourceQuality "1"]
[TimeControl "40/5400+30:1800+30"]

{[%evp 16,43,39,27,58,33,55,44,117,79,85,68,72,72,96,84,112,102,198,194,379,363,716,634,710,306,641,614,726,683]} 1. e4 {[%emt 0:00:00]} c5 {[%emt 0:00:00]} 2. Nf3 {[%emt 0:00:00]} d6 {[%emt 0:00:00]} 3. d4 {[%emt 0:00:00]} cxd4 {[%emt 0:00:00]} 4. Nxd4 {[%emt 0:00:00]} Nf6 {[%emt 0:00:00]} 5. Nc3 {[%emt 0:00:08]} a6 {[%emt 0:00:00]} 6. Bc4 {[%emt 0:00:57]} e6 {[%emt 0:02:43]} 7. Be3 {[%emt 0:00:27]} Be7 {[%emt 0:00:29]} 8. Bb3 {[%emt 0:01:56]} O-O {[%emt 0:07:18]} 9. g4 {[%emt 0:11:57] LiveBook: 17 Games. B86: Sicilian Scheveningen/Najdorf: 6 Bc4, without early ...b5} Ne8 {[%emt 0:20:51]} (9... Nfd7 10. h4 Nc5 11. g5 b5 12. a3 Bb7 13. f3 Nc6 14. Qd2 Nxb3 15. cxb3 b4 16. Nxc6 Bxc6 17. axb4 {1-0 (43) Sethuraman,S (2646)-Kokarev,D (2615) Riadh 2017}) 10. Qe2 {[%emt 0:07:55]} Nc6 $146 {[%emt 0:03:21]} ({Predecessor:} 10... Bd7 11. O-O-O {Black should try} Nc6 $14 12. Rhg1 b5 13. Nf5 Na5 14. Nxe7+ Qxe7 15. g5 Nxb3+ 16. axb3 Qd8 {1-0 (25) Genocchio,D (2416)-Tonus,A (1919) Conegliano 2008}) 11. O-O-O {[%emt 0:02:44] White is slightly better.} Bf6 {[%emt 0:08:15]} 12. f4 {[%emt 0:06:56]} (12. Nxc6 {with more complications.} bxc6 13. Na4 Be7 14. h4 Rb8 15. Kb1) 12... Nxd4 {[%emt 0:08:15]} 13. Bxd4 {[%emt 0:00:55]} Bxd4 {[%emt 0:00:06]} 14. Rxd4 {[%emt 0:00:09]} b5 {[%emt 0:00:19]} 15. Rhd1 {[%emt 0:01:21]} Qb6 {[%emt 0:01:34]} 16. f5 {[%emt 0:08:23]} e5 {[%emt 0:10:50]} (16... Qc5 $16) 17. R4d3 $18 {[%emt 0:01:49]} Bb7 $2 {[%emt 0:00:09]} (17... Qd8 18. Kb1 b4) 18. g5 {[%emt 0:01:48]} Kh8 $2 {[%emt 0:06:05]} (18... Rc8 19. g6 Rc7 20. gxf7+ Rcxf7) 19. Rh3 {[%emt 0:04:50] And now Qh5 would win.} g6 {[%emt 0:04:13] [#]} 20. f6 {[%emt 0:03:48]} (20. Bxf7 $142 $1 {[%mdl 512]} Rxf7 21. fxg6) 20... Bc8 $2 {[%emt 0:00:26]} (20... b4) 21. Nd5 {[%emt 0:02:23]} Qd8 {[%emt 0:00:17]} 22. Rh6 {[%emt 0:01:14] Precision: White = 66%, Black = 14%.} 1-0

[Event "22nd Hogeschool Zeeland 2018"]
[Site "Vlissingen"]
[Date "2018.08.04"]
[Round "1"]
[White "Gonzales, Jayson"]
[Black "Van der Hagen, Loek"]
[Result "1-0"]
[ECO "E60"]
[WhiteElo "2383"]
[BlackElo "1814"]
[Annotator "NA"]
[PlyCount "47"]
[EventDate "2018.08.04"]
[EventType "swiss"]
[EventCountry "NED"]
[SourceTitle "playchess.com"]
[Source "ChessBase"]
[SourceQuality "1"]
[TimeControl "40/5400+30:1800+30"]

{[%evp 17,47,11,25,8,7,0,7,5,14,-25,-31,-22,-28,-24,-8,-19,51,37,57,61,66,24,27,0,47,34,85,25,68,63,29998,29999]} 1. Nf3 {[%emt 0:00:00]} Nf6 {[%emt 0:00:00]} 2. c4 {[%emt 0:00:09]} g6 {[%emt 0:00:00]} 3. b3 {[%emt 0:01:18]} Bg7 {[%emt 0:00:00]} 4. Bb2 {[%emt 0:00:07]} O-O {[%emt 0:00:52]} 5. g3 {[%emt 0:01:12]} d6 {[%emt 0:01:33]} 6. Bg2 {[%emt 0:01:33]} e5 {[%emt 0:02:29]} 7. O-O {[%emt 0:00:30]} Nc6 {[%emt 0:02:26]} 8. d4 {[%emt 0:07:37]} Nd7 {[%emt 0:03:36] E60: King's Indian: Unusual lines and Fianchetto Variation without Nc3} (8... e4 9. Nfd2 e3 10. fxe3 Re8 11. Na3 Ng4 12. Nc2 Nxe3 13. Nxe3 Rxe3 14. Rf4 Qe7 15. Kf1 g5 16. Re4 Rxe4 17. Nxe4 {1-0 (55) Harikrishna,P (2726)-Aronian,L (2815) Dubai 2014}) 9. d5 {[%emt 0:13:26]} Ne7 {[%emt 0:00:37] LiveBook: 3 Games} 10. e4 {[%emt 0:00:02]} Nc5 {[%emt 0:06:40] The position is equal.} 11. Nc3 {[%emt 0:13:50]} a5 {[%emt 0:06:37]} 12. a3 $146 {[%emt 0:12:56]} ({Predecessor:} 12. Ne1 f5 13. f3 Bh6 14. Bc1 Bxc1 15. Rxc1 {0-1 (42) Barton,A (2080)-Hebden,M (2547) Hastings 2013}) 12... f5 {[%emt 0:03:50]} 13. b4 {[%emt 0:07:17]} Nxe4 {[%emt 0:10:44]} 14. Nxe4 {[%emt 0:02:39]} fxe4 {[%emt 0:00:59]} 15. Nd2 $1 {[%emt 0:01:49] [#]} e3 $1 {[%emt 0:07:10]} 16. fxe3 {[%emt 0:00:04]} c6 {[%emt 0:01:53]} (16... Nf5 $11) 17. Rxf8+ $14 {[%emt 0:03:42]} Bxf8 {[%emt 0:09:01]} 18. dxc6 {[%emt 0:00:28]} bxc6 {[%emt 0:01:42]} 19. Ne4 {[%emt 0:00:32] Threatens to win with Bxe5!} Nf5 {[%emt 0:03:44]} 20. c5 $36 {[%emt 0:09:42] Black must now prevent Bxe5! Black is under pressure.} (20. Bxe5 $5 Nxe3 21. Bf6 $11) 20... Be6 {[%emt 0:12:54]} 21. cxd6 {[%emt 0:07:41]} Nxe3 {[%emt 0:00:20] [#]} (21... axb4 $14 22. Nc5 (22. axb4 Nxe3 23. Rxa8 Qxa8 $16) (22. Bxe5 Rxa3 23. Rxa3 bxa3 $11) 22... bxa3 23. Bxe5 Qb6) 22. Qf3 {[%emt 0:00:35]} (22. Qe2 $1 $16 {[%cal Re2e3]} Nc4 23. Rc1 Nxb2 24. Qxb2) 22... Nxg2 {[%emt 0:06:09]} 23. Bxe5 {[%emt 0:00:55] Hoping for Nf6+.} ({But not} 23. Kxg2 Bxd6 24. Nf6+ Kg7 $17) 23... Bf5 $2 {[%emt 0:03:38]} (23... axb4 $14 24. axb4 (24. Kxg2 Bd5 $15) 24... Rxa1+ 25. Bxa1 Ne1) 24. Qb3+ {[%emt 0:00:20] Precision: White = 50%, Black = 24%.} 1-0

[Event "22nd Hogeschool Zeeland 2018"]
[Site "Vlissingen"]
[Date "2018.08.04"]
[Round "1"]
[White "Miciano, John Marvin"]
[Black "Burg, Henk"]
[Result "1-0"]
[ECO "A08"]
[WhiteElo "2381"]
[BlackElo "1805"]
[Annotator "NA"]
[PlyCount "63"]
[EventDate "2018.08.04"]
[EventType "swiss"]
[EventCountry "NED"]
[SourceTitle "playchess.com"]
[Source "ChessBase"]
[SourceQuality "1"]
[TimeControl "40/5400+30:1800+30"]

1. g3 {[%emt 0:00:32]} d5 {[%emt 0:01:15]} 2. Bg2 {[%emt 0:00:13]} Nf6 {[%emt 0:00:22]} 3. Nf3 {[%emt 0:00:26]} g6 {[%emt 0:00:06]} 4. O-O {[%emt 0:00:33]} Bg7 {[%emt 0:00:02]} 5. d3 {[%emt 0:00:09]} O-O {[%emt 0:00:07]} 6. c3 {[%emt 0:00:08]} c5 {[%emt 0:02:38]} 7. Nbd2 {[%emt 0:00:32]} Nc6 {[%emt 0:00:10]} 8. Qa4 {[%emt 0:00:13]} Bd7 {[%emt 0:02:41]} 9. Qa3 {[%emt 0:03:49]} Qa5 {[%emt 0:08:26]} 10. Qb3 {[%emt 0:02:05]} Qb6 {[%emt 0:00:15]} 11. Qc2 {[%emt 0:00:16]} Rac8 {[%emt 0:00:24]} 12. e4 {[%emt 0:00:32]} dxe4 {[%emt 0:04:33]} 13. dxe4 {[%emt 0:00:15]} e5 {[%emt 0:00:52]} 14. Nc4 {[%emt 0:01:10]} Qc7 {[%emt 0:01:31]} 15. Bg5 {[%emt 0:03:33]} h6 {[%emt 0:05:39]} 16. Bxf6 {[%emt 0:00:13]} Bxf6 {[%emt 0:00:23]} 17. Ne3 {[%emt 0:00:20]} Bg7 {[%emt 0:06:43]} 18. Rfd1 {[%emt 0:00:44]} Be6 {[%emt 0:00:47]} 19. Bf1 {[%emt 0:06:29]} f5 {[%emt 0:06:46]} 20. Bc4 {[%emt 0:06:50]} Bxc4 {[%emt 0:02:27]} 21. Nxc4 {[%emt 0:00:07]} fxe4 {[%emt 0:00:33]} 22. Qxe4 {[%emt 0:01:20]} Rf6 {[%emt 0:06:30]} 23. Nh4 {[%emt 0:03:37]} b5 {[%emt 0:03:24]} 24. Ne3 {[%emt 0:00:09]} Qf7 {[%emt 0:04:26]} 25. Rd2 {[%emt 0:01:35]} Rf8 {[%emt 0:08:29]} 26. Rad1 {[%emt 0:01:52]} Na5 {[%emt 0:13:25]} 27. Rd7 {[%emt 0:02:49]} Qe6 {[%emt 0:02:36]} 28. Ng4 {[%emt 0:13:59]} Rf4 {[%emt 0:06:02]} 29. gxf4 {[%emt 0:00:09]} Qxg4+ {[%emt 0:00:04]} 30. Ng2 {[%emt 0:00:06]} exf4 {[%emt 0:02:43]} 31. Qe7 {[%emt 0:00:19]} f3 {[%emt 0:01:09]} 32. Qxg7# {[%emt 0:00:08]} 1-0

[Event "22nd Hogeschool Zeeland 2018"]
[Site "Vlissingen"]
[Date "2018.08.04"]
[Round "1"]
[White "Ravi, Teja S"]
[Black "Van t Hoff, Kees"]
[Result "1-0"]
[ECO "D00"]
[WhiteElo "2374"]
[BlackElo "1792"]
[Annotator "NA"]
[PlyCount "57"]
[EventDate "2018.08.04"]
[EventType "swiss"]
[EventCountry "NED"]
[SourceTitle "playchess.com"]
[Source "ChessBase"]
[SourceQuality "1"]
[TimeControl "40/5400+30:1800+30"]

{[%evp 11,57,0,16,-3,4,-4,8,8,27,27,18,23,85,0,35,-18,-13,-52,-56,-63,-47,-49,25,28,134,99,105,106,115,3,93,66,68,65,58,79,227,216,245,243,552,546,538,525,29985,29986,29982,1353]} 1. d4 {[%emt 0:00:00]} Nf6 {[%emt 0:00:00]} 2. Nf3 {[%emt 0:00:02]} g6 {[%emt 0:00:22]} 3. Nc3 {[%emt 0:00:11]} d5 {[%emt 0:00:28]} 4. Bf4 {[%emt 0:00:40]} c6 {[%emt 0:00:39]} 5. e3 {[%emt 0:00:10]} Bg7 {[%emt 0:01:07]} 6. Be2 {[%emt 0:00:15]} Nbd7 {[%emt 0:01:55] LiveBook: 29 Partien} 7. h4 {[%emt 0:00:55] D00: Damenbauernspiele} h5 {[%emt 0:03:41]} 8. Qd2 {[%emt 0:01:48]} (8. Ne5 Nxe5 9. Bxe5 Kf8 10. Qd2 b5 11. f3 {1-0 (33) Abasov,N (2587)-Valsecchi,A (2508) Antalya 2017}) 8... a6 {[%emt 0:01:59]} 9. Ne5 {[%emt 0:00:51] Die Stellung ist ausgeglichen.} Nf8 $146 {[%emt 0:03:37]} ({Vorgänger:} 9... Nxe5 10. Bxe5 b5 11. f3 {1-0 (39) Guerra Rivera,S (2360)-Bergougnoux,A (2091) Mamaia 2017}) 10. O-O-O {[%emt 0:01:40]} Ne6 {[%emt 0:01:10]} 11. Bh2 {[%emt 0:01:03]} Bd7 {[%emt 0:00:39]} (11... Nd7 $11) 12. Bd3 {[%emt 0:01:51]} c5 {[%emt 0:02:50]} 13. dxc5 {[%emt 0:18:26]} (13. Kb1 $14) 13... Nxc5 $11 {[%emt 0:01:19]} 14. Nxd7 {[%emt 0:04:55]} Qxd7 {[%emt 0:01:25]} 15. f3 {[%emt 0:00:26]} b5 {[%emt 0:06:57]} 16. Be5 {[%emt 0:01:07]} Nxd3+ {[%emt 0:04:02]} (16... O-O $15) 17. Qxd3 {[%emt 0:00:11]} e6 {[%emt 0:00:35]} (17... Qe6 $1 $11 18. Bxf6 Qxf6) 18. Qd4 {[%emt 0:02:04]} Qe7 {[%emt 0:03:41]} 19. g4 $1 {[%emt 0:01:55] g5 ist eine echte Drohung.} O-O {[%emt 0:00:20] [#]} 20. e4 {[%emt 0:12:11]} (20. gxh5 $1 $16 Nxh5 21. Bxg7 Nxg7 {[#]} 22. h5 $1 {[%mdl 512]}) 20... Rfc8 {[%emt 0:10:50]} (20... b4 $1 $11 {bleibt in der Remisbreite.} 21. Ne2 Rfd8) 21. g5 $36 {[%emt 0:03:31] Weiss hat Druck.} Ne8 {[%emt 0:02:05] zielt auf ...Tc4 ab.} 22. Bxg7 $1 {[%emt 0:00:39]} Nxg7 {[%emt 0:00:22]} 23. exd5 {[%emt 0:00:16]} Rc4 {[%emt 0:02:54]} (23... Nf5 $16 24. Qe5 exd5 25. Qxe7 (25. Rxd5 Qxe5 26. Rxe5 Kg7 $11) 25... Nxe7) 24. d6 $18 {[%emt 0:01:37]} Qd8 {[%emt 0:01:57]} 25. Qe5 {[%emt 0:02:13]} Rac8 $2 {[%emt 0:00:45]} (25... Qb6 {ist zäher.} 26. Ne4 Rd8) 26. d7 {[%emt 0:00:18]} Ra8 {[%emt 0:02:40]} 27. Ne4 {[%emt 0:01:24] Droht stark Sf6+.} Rc7 {[%emt 0:07:57]} 28. Nf6+ {[%emt 0:00:22]} Kf8 {[%emt 0:00:12]} 29. Qd6+ {[%emt 0:00:07] Precision: Weiß = 52%, Schwarz = 23%.} 1-0

[Event "22nd Hogeschool Zeeland 2018"]
[Site "Vlissingen"]
[Date "2018.08.04"]
[Round "1"]
[White "Smit, Manuel"]
[Black "Van Delft, Merijn"]
[Result "0-1"]
[ECO "A48"]
[WhiteElo "1829"]
[BlackElo "2395"]
[Annotator "NA"]
[PlyCount "66"]
[EventDate "2018.08.04"]
[EventType "swiss"]
[EventCountry "NED"]
[SourceTitle "playchess.com"]
[Source "ChessBase"]
[SourceQuality "1"]
[TimeControl "40/5400+30:1800+30"]

{[%evp 18,66,18,9,56,26,21,22,6,3,33,38,58,54,53,5,25,-47,-45,-171,-172,-169,-176,-216,-180,-239,-233,-259,-254,-375,-309,-430,-420,-408,-327,-329,-332,-325,-328,-340,-336,-403,-405,-402,-392,-392,-389,-528,-527,-518,-527]} 1. d4 {[%emt 0:00:00]} Nf6 {[%emt 0:23:58]} 2. Bf4 {[%emt 0:00:00]} g6 {[%emt 0:00:19]} 3. h3 {[%emt 0:00:41]} Bg7 {[%emt 0:00:14]} 4. Nf3 {[%emt 0:00:19]} O-O {[%emt 0:00:13]} 5. e3 {[%emt 0:00:16]} d6 {[%emt 0:00:15]} 6. Be2 {[%emt 0:01:11]} Nbd7 {[%emt 0:00:25]} 7. Bh2 {[%emt 0:01:39] A48: Königsindisch (ohne c2-c4)} b6 {[%emt 0:00:24]} 8. O-O {[%emt 0:00:37]} Bb7 {[%emt 0:00:09]} 9. c4 {[%emt 0:00:30]} c5 {[%emt 0:00:51]} (9... Ne4 10. Nfd2 Nxd2 11. Qxd2 c5 12. Nc3 cxd4 13. exd4 Nf6 14. d5 a6 15. Rfe1 Re8 {1-0 (35) Le,Q (2737)-Howell,D (2676) Riadh 2017}) 10. Nc3 {[%emt 0:01:01] LiveBook: 4 Partien} a6 {[%emt 0:00:39]} 11. Rc1 $146 {[%emt 0:00:18]} ({Vorgänger:} 11. Qc2 cxd4 12. Nxd4 Rc8 13. Rfd1 Qc7 14. Rac1 Ne5 15. b3 Nc6 16. Qd2 Qb8 {½-½ (41) Tica,S (2260)-Balenovic,Z (2190) Topusko 2016}) 11... Ne4 {[%emt 0:01:14]} 12. Nxe4 {[%emt 0:03:26]} Bxe4 {[%emt 0:00:03]} 13. b3 {[%emt 0:00:49]} Qb8 {[%emt 0:01:06]} 14. Qd2 {[%emt 0:05:28]} Rc8 {[%emt 0:01:15]} 15. Ng5 {[%emt 0:02:15]} Bb7 {[%emt 0:01:12]} 16. Bg4 {[%emt 0:03:37]} Rc7 {[%emt 0:00:52]} 17. b4 {[%emt 0:05:52]} (17. Bd1 $11) 17... h6 $15 {[%emt 0:03:53]} 18. dxc5 {[%emt 0:08:38]} (18. Bxd7 $15 Rxd7 19. Nf3) 18... bxc5 $19 {[%emt 0:00:57]} 19. Bxd7 {[%emt 0:00:59]} Rxd7 {[%emt 0:03:05]} 20. Nxf7 {[%emt 0:01:44] Weiss will Se5! spielen.} Qc8 {[%emt 0:08:34]} 21. Nxh6+ {[%emt 0:06:33]} (21. Nxd6 $142 exd6 22. Rfd1) 21... Bxh6 {[%emt 0:00:17]} 22. Qd3 {[%emt 0:01:17]} Kh7 {[%emt 0:01:59]} 23. h4 {[%emt 0:00:49]} (23. bxc5 {war angesagt.} Qxc5 24. Bf4) 23... Rc7 {[%emt 0:05:43]} 24. Rb1 {[%emt 0:11:07]} Qe6 {[%emt 0:06:38]} 25. Rb3 {[%emt 0:14:43]} Qe4 {[%emt 0:12:25]} 26. Qxe4 {[%emt 0:02:15]} Bxe4 {[%emt 0:00:03]} 27. f3 {[%emt 0:06:59]} Bc2 {[%emt 0:00:09]} 28. Rc3 {[%emt 0:00:24]} Bf5 {[%emt 0:00:16]} ({Nicht} 28... cxb4 29. Rxc2 Bxe3+ 30. Kh1 $17) 29. a3 {[%emt 0:13:04]} Bg7 {[%emt 0:01:10]} 30. Rcc1 {[%emt 0:02:57]} cxb4 {[%emt 0:04:08]} 31. axb4 {[%emt 0:00:30]} Bd3 {[%emt 0:00:53]} 32. c5 {[%emt 0:00:25]} Bxf1 {[%emt 0:00:38]} 33. Rxf1 {[%emt 0:00:05]} Rc6 {[%emt 0:05:54] Precision: Weiß = 30%, Schwarz = 62%.} 0-1

[Event "22nd Hogeschool Zeeland 2018"]
[Site "Vlissingen"]
[Date "2018.08.04"]
[Round "1"]
[White "Smink, Meinte"]
[Black "Shyaamnikhil P"]
[Result "0-1"]
[ECO "E25"]
[WhiteElo "1820"]
[BlackElo "2389"]
[Annotator "NA"]
[PlyCount "76"]
[EventDate "2018.08.04"]
[EventType "swiss"]
[EventCountry "NED"]
[SourceTitle "playchess.com"]
[Source "ChessBase"]
[SourceQuality "1"]
[TimeControl "40/5400+30:1800+30"]

{[%evp 17,76,0,15,-12,-11,-36,-44,-58,-52,-81,-75,-62,-64,-68,-77,-69,-65,-63,-37,-44,-19,-37,0,-18,0,0,0,0,0,0,15,0,0,0,-6,-4,24,-8,-7,-34,-20,-98,-82,-119,-114,-121,-133,-175,-164,-203,-200,-195,-192,-346,-282,-634,-643,-615,-600,-580,-567]} 1. d4 {[%emt 0:00:00]} Nf6 {[%emt 0:00:00]} 2. c4 {[%emt 0:00:00]} e6 {[%emt 0:00:09]} 3. Nc3 {[%emt 0:00:00]} Bb4 {[%emt 0:00:05]} 4. f3 {[%emt 0:00:27]} d5 {[%emt 0:01:27]} 5. a3 {[%emt 0:00:18]} Bxc3+ {[%emt 0:00:36]} 6. bxc3 {[%emt 0:00:13]} c5 {[%emt 0:00:10]} 7. cxd5 {[%emt 0:00:44]} Nxd5 {[%emt 0:00:06]} 8. dxc5 {[%emt 0:01:01]} f5 {[%emt 0:00:15]} 9. Nh3 {[%emt 0:04:05]} Qa5 {[%emt 0:01:35] LiveBook: 36 Games. E25: Nimzo-Indian: Sämisch: 5...c5 6 f3 d5 7 cxd5} 10. Qd3 {[%emt 0:12:34]} Nd7 {[%emt 0:04:35]} 11. e4 $146 {[%emt 0:03:54]} ({Predecessor:} 11. e3 Nxc5 12. Qb5+ Qxb5 13. Bxb5+ Bd7 14. Bxd7+ Kxd7 15. Nf4 Nb6 16. e4 fxe4 17. Be3 {0-1 (48) Galojan,L (2383)-Zhao,X (2541) Mardin 2011}) 11... fxe4 {[%emt 0:02:21] Black is slightly better.} 12. fxe4 {[%emt 0:01:01]} N5f6 {[%emt 0:00:08]} 13. Nf2 {[%emt 0:07:47]} O-O {[%emt 0:01:10]} 14. Be2 {[%emt 0:05:00]} Nxc5 {[%emt 0:00:12]} 15. Qc2 {[%emt 0:00:39]} Bd7 {[%emt 0:06:43]} 16. O-O {[%emt 0:02:57]} Ba4 {[%emt 0:00:28]} 17. Qb2 {[%emt 0:03:22]} Nfxe4 {[%emt 0:06:24]} 18. Be3 {[%emt 0:05:20]} Nxf2 {[%emt 0:04:19]} 19. Bxf2 {[%emt 0:02:18]} Bc6 {[%emt 0:06:13]} 20. Bd4 {[%emt 0:06:31]} Nd7 {[%emt 0:05:31]} 21. Bc4 {[%emt 0:04:50]} Bd5 {[%emt 0:01:29]} 22. Bxd5 {[%emt 0:02:59]} Qxd5 {[%emt 0:01:47] [#]} 23. c4 $1 {[%emt 0:01:28]} Qc6 {[%emt 0:05:28]} (23... Qxc4 24. Bxg7) 24. Bxg7 {[%emt 0:02:58]} Qb6+ {[%emt 0:00:56]} 25. Bd4 {[%emt 0:02:33]} Qxb2 {[%emt 0:00:18]} 26. Bxb2 {[%emt 0:00:06]} Rac8 {[%emt 0:00:29]} 27. Rxf8+ {[%emt 0:04:54]} (27. Rfe1 {looks sharper.} Nc5 28. Rad1 Rcd8 29. Rd4 Rxd4 30. Bxd4 Rf5 31. Rf1) 27... Kxf8 $11 {[%emt 0:00:07] Endgame KRB-KRN} 28. Rc1 {[%emt 0:01:15]} e5 {[%emt 0:08:02]} 29. g4 {[%emt 0:03:44]} (29. Re1 $11 {was the only way to keep the balance.}) 29... Kf7 $17 {[%emt 0:00:10]} 30. h3 {[%emt 0:02:59]} Ke6 {[%emt 0:00:07]} 31. Kf1 {[%emt 0:02:56] [#]} Nb6 $1 {[%emt 0:00:07]} 32. Ke2 {[%emt 0:04:05]} Nxc4 {[%emt 0:00:30]} 33. Rc2 {[%emt 0:01:25]} b5 {[%emt 0:01:18]} 34. Bc1 {[%emt 0:01:00]} a5 {[%emt 0:01:55]} 35. Kd3 $2 {[%emt 0:02:06]} (35. Bd2) 35... Kd5 $19 {[%emt 0:00:08]} 36. g5 $2 {[%emt 0:01:20]} (36. Rf2) 36... e4+ {[%emt 0:00:09] Black is clearly winning.} 37. Ke2 {[%emt 0:00:18]} b4 {[%emt 0:00:08]} 38. axb4 {[%emt 0:01:38]} axb4 {[%emt 0:00:06] Precision: White = 18%, Black = 53%.} 0-1

[Event "22nd Hogeschool Zeeland 2018"]
[Site "Vlissingen"]
[Date "2018.08.04"]
[Round "1"]
[White "Van Gemert, Jean-Pierre"]
[Black "Timmermans, Mark"]
[Result "0-1"]
[ECO "D02"]
[WhiteElo "1811"]
[BlackElo "2383"]
[Annotator "NA"]
[PlyCount "54"]
[EventDate "2018.08.04"]
[EventType "swiss"]
[EventCountry "NED"]
[SourceTitle "playchess.com"]
[Source "ChessBase"]
[SourceQuality "1"]
[TimeControl "40/5400+30:1800+30"]

{[%evp 14,54,44,42,54,57,55,58,48,47,65,16,11,0,0,0,0,-33,-32,-32,-31,-36,-31,-41,-57,-108,-116,-143,-134,-273,-268,-460,-445,-481,-468,-507,-501,-529,-517,-610,-625,-29994,-29995]} 1. d4 {[%emt 0:00:00]} Nf6 {[%emt 0:01:52]} 2. Nf3 {[%emt 0:00:00]} d5 {[%emt 0:00:20]} 3. Bf4 {[%emt 0:00:12]} c5 {[%emt 0:00:42]} 4. c3 {[%emt 0:00:28]} Nc6 {[%emt 0:00:17]} 5. e3 {[%emt 0:00:08]} Qb6 {[%emt 0:01:51]} 6. Qc2 {[%emt 0:02:55]} Bf5 {[%emt 0:00:37] D02: 1 d4 d5 2 Nf3 sidelines, including 2...Nf6 3 g3 and 2...Nf6 3 Bf4} (6... g6 7. Nbd2 Bg7 8. Be2 O-O 9. O-O Bf5 10. dxc5 Qxc5 11. Qb3 Ne4 12. Nxe4 Bxe4 13. Bg3 Na5 14. Qb5 Qxb5 15. Bxb5 {0-1 (94) Hoang,T (2423)-Galyas,M (2517) Ajka 2018}) 7. dxc5 {[%emt 0:05:46]} Bxc2 {[%emt 0:00:33]} 8. cxb6 {[%emt 0:02:52] LiveBook: 8 Games} Bxb1 {[%emt 0:04:10] White is slightly better.} 9. Rxb1 {[%emt 0:00:46]} axb6 {[%emt 0:00:04]} 10. a3 {[%emt 0:00:15]} e6 {[%emt 0:01:33]} 11. Bb5 {[%emt 0:03:26]} Be7 {[%emt 0:02:29]} 12. a4 $146 {[%emt 0:09:36]} ({Predecessor:} 12. Ne5 O-O 13. Bxc6 bxc6 14. Nxc6 {1-0 (35) Elnaami,H (1913)-Shaker,M (1734) Sharjah 2018}) 12... O-O {[%emt 0:02:21]} 13. O-O {[%emt 0:05:22]} Ne4 {[%emt 0:01:42]} 14. Bc7 {[%emt 0:05:39]} Bd8 {[%emt 0:00:05]} 15. Bf4 {[%emt 0:00:33]} g5 {[%emt 0:00:19]} 16. Bg3 $1 {[%emt 0:03:08]} h5 {[%emt 0:02:53]} 17. h3 $1 {[%emt 0:05:25]} h4 $36 {[%emt 0:07:26] White is under pressure.} 18. Bh2 $1 {[%emt 0:02:25]} f5 {[%emt 0:00:18] Strongly threatening ...g4.} 19. Rbd1 {[%emt 0:04:47]} (19. g3 $15) 19... g4 $17 {[%emt 0:02:13]} 20. hxg4 {[%emt 0:05:36]} fxg4 {[%emt 0:00:05]} 21. Ne5 {[%emt 0:05:06]} (21. Nd4 $17 g3 22. Nxe6 gxh2+ 23. Kxh2 Nxf2 24. Nxf8 Nxd1 25. Ne6 Nxb2 26. Rf8+ Kh7 27. Kh3) 21... g3 $19 {[%emt 0:00:47]} 22. Nxc6 $2 {[%emt 0:04:27] [#]} (22. Ng4) 22... bxc6 {[%emt 0:02:20]} (22... gxh2+ $2 23. Kxh2 bxc6 24. Bxc6 $19 Ra7 25. f3 $19) 23. Bxc6 {[%emt 0:00:14] Threatens to win with fxg3.} gxf2+ {[%emt 0:03:34]} 24. Rxf2 {[%emt 0:03:43]} Nxf2 {[%emt 0:02:39]} (24... Rxf2 25. Bxa8 Rxb2 26. Be5 $17) 25. Rf1 {[%emt 0:05:19] [#]} Bg5 $1 {[%emt 0:00:06]} ({Less strong is} 25... Rc8 26. Bd7 $15) 26. Bd6 {[%emt 0:03:54]} Bxe3 {[%emt 0:03:17] ( -> ...Ng4+)} 27. Bxa8 {[%emt 0:01:55]} Ng4+ {[%emt 0:00:08] Precision: White = 32%, Black = 97%.} 0-1